{"text_format":"1","workbook":"xlsx","n_sheets":2,"sheets":["Формуляр","Персонал"],"not_rendered":{"charts":0,"images":0,"macros":1,"external_links":0,"defined_names":4,"comments":0,"pivot_tables":0},"unopened":[],"bounds":{"document_bytes":16777216,"sheet_cells":100000,"rows_first":2000,"rows_last":500,"rows_between":2000,"halvings":0,"cell_chars":16384,"cell_head_chars":4096},"cells_cut":0,"cells_raw":0,"read":"whole","date_system":"1900"}

{"sheet":"Формуляр","index":0,"n_rows":49,"n_cols":12,"rows_kept":49,"cut":false,"hidden":false,"merged":[[42,9,43,9],[42,10,43,10],[13,2,13,3],[14,2,14,5],[11,2,11,3],[11,4,11,5],[27,7,27,8],[15,7,15,8],[16,7,16,8],[17,7,17,8],[18,7,18,8],[19,7,19,8],[18,2,18,3],[19,2,19,3],[22,7,22,8],[23,7,23,8],[24,7,24,8],[3,2,3,5],[42,7,43,8],[7,4,7,5],[9,3,9,5],[15,2,15,3],[16,2,16,3],[17,2,17,3],[20,7,20,8],[21,7,21,8],[41,7,41,8],[28,7,28,8],[29,7,29,8],[30,7,30,8],[31,7,31,8],[32,7,32,8],[33,7,33,8],[34,7,34,8],[35,7,35,8],[36,7,36,8],[39,7,39,8],[40,7,40,8],[48,7,48,8],[44,7,44,8],[45,7,45,8],[46,7,46,8],[47,7,47,8],[23,2,23,3],[24,2,24,3],[20,2,20,3],[21,2,21,3],[22,2,22,3]]}
[]
[]
[]
[null,null,"Название организации"]
[]
[null,null,"Имя",null,"Фамилия"]
[]
[null,null,null,"Отчество"]
[]
[null,null,"Должность"]
[]
[null,null,"Дата поступления на работу"]
[]
[null,null,"Наименование СИЗ",null,"Кол-во","Норма на год"]
[]
[null,null,{"$f":"IFERROR(VLOOKUP(ROW(A1),$G:$K,COLUMN()-1,0),\"\")","v":"Костюм Зимний"},null,{"$f":"IFERROR(VLOOKUP(ROW(A1),$G:$K,COLUMN()-1,0),\"\")","v":1},{"$f":"IFERROR(VLOOKUP(ROW(B1),$G:$K,COLUMN()-1,0),\"\")","v":1},{"$f":"COUNTIF($L$16:L16,Персонал!$D$3)","v":1},"Костюм Зимний",null,1,1,"РиОЭО рабочий"]
[null,null,{"$f":"IFERROR(VLOOKUP(ROW(A2),G:K,COLUMN()-1,0),\"\")","v":"Костюм Летний"},null,{"$f":"IFERROR(VLOOKUP(ROW(A2),$G:$K,COLUMN()-1,0),\"\")","v":1},2,{"$f":"COUNTIF($L$16:L17,Персонал!$D$3)","v":2},"Костюм Летний",null,1,2,"РиОЭО рабочий"]
[null,null,"Ботинки",null,{"$f":"IFERROR(VLOOKUP(ROW(A3),$G:$K,COLUMN()-1,0),\"\")","v":2},0.5,{"$f":"COUNTIF($L$16:L18,Персонал!$D$3)","v":3},"Ботинки",null,2,0.5,"РиОЭО рабочий"]
[null,null,"Валенки",null,{"$f":"IFERROR(VLOOKUP(ROW(A4),$G:$K,COLUMN()-1,0),\"\")","v":1},0.33,{"$f":"COUNTIF($L$16:L19,Персонал!$D$3)","v":4},"Валенки",null,1,0.33,"РиОЭО рабочий"]
[null,null,"Перчатки",null,{"$f":"IFERROR(VLOOKUP(ROW(A5),$G:$K,COLUMN()-1,0),\"\")","v":2},12,{"$f":"COUNTIF($L$16:L20,Персонал!$D$3)","v":5},"Перчатки",null,2,12,"РиОЭО рабочий"]
[null,null,"Комбинеон",null,{"$f":"IFERROR(VLOOKUP(ROW(A6),$G:$K,COLUMN()-1,0),\"\")","v":1},1,{"$f":"COUNTIF($L$16:L21,Персонал!$D$3)","v":6},"Комбинеон",null,1,1,"РиОЭО рабочий"]
[null,null,"Сапоги болотники",null,{"$f":"IFERROR(VLOOKUP(ROW(A7),$G:$K,COLUMN()-1,0),\"\")","v":1},1,{"$f":"COUNTIF($L$16:L22,Персонал!$D$3)","v":7},"Сапоги болотники",null,1,1,"РиОЭО рабочий"]
[null,null,"Шамка",null,{"$f":"IFERROR(VLOOKUP(ROW(A8),$G:$K,COLUMN()-1,0),\"\")","v":1},2,{"$f":"COUNTIF($L$16:L23,Персонал!$D$3)","v":8},"Шамка",null,1,2,"РиОЭО рабочий"]
[null,null,"Кепка",null,{"$f":"IFERROR(VLOOKUP(ROW(A9),$G:$K,COLUMN()-1,0),\"\")","v":1},0.5,{"$f":"COUNTIF($L$16:L24,Персонал!$D$3)","v":9},"Кепка",null,1,0.5,"РиОЭО рабочий"]
[null,null,"Жилет",null,{"$f":"IFERROR(VLOOKUP(ROW(A10),$G:$K,COLUMN()-1,0),\"\")","v":1},"износ",{"$f":"COUNTIF($L$16:L25,Персонал!$D$3)","v":10},"Жилет",null,1,"износ","РиОЭО рабочий"]
[null,null,null,null,null,null,{"$f":"COUNTIF($L$16:L26,Персонал!$D$3)","v":10}]
[null,null,null,null,null,null,{"$f":"COUNTIF($L$16:L27,Персонал!$D$3)","v":10}]
[null,null,null,null,null,null,{"$f":"COUNTIF($L$16:L28,Персонал!$D$3)","v":10},"Костюм Зимний",null,1,1,"РВЛ"]
[null,null,null,null,null,null,{"$f":"COUNTIF($L$16:L29,Персонал!$D$3)","v":10},"Костюм Летний",null,1,"износ","РВЛ"]
[null,null,null,null,null,null,{"$f":"COUNTIF($L$16:L30,Персонал!$D$3)","v":10},"Шамка",null,1,2,"РВЛ"]
[null,null,null,null,null,null,{"$f":"COUNTIF($L$16:L31,Персонал!$D$3)","v":10},"Валенки",null,1,0.33,"РВЛ"]
[null,null,null,null,null,null,{"$f":"COUNTIF($L$16:L32,Персонал!$D$3)","v":10},"Перчатки",null,1,6,"РВЛ"]
[null,null,null,null,null,null,{"$f":"COUNTIF($L$16:L33,Персонал!$D$3)","v":10},"Голоши",null,1,2,"РВЛ"]
[null,null,null,null,null,null,{"$f":"COUNTIF($L$16:L34,Персонал!$D$3)","v":10},"Сапоги болотники",null,1,1,"РВЛ"]
[null,null,null,null,null,null,{"$f":"COUNTIF($L$16:L35,Персонал!$D$3)","v":10}]
[null,null,null,null,null,null,{"$f":"COUNTIF($L$16:L36,Персонал!$D$3)","v":10}]
[null,null,null,null,null,null,{"$f":"COUNTIF($L$16:L37,Персонал!$D$3)","v":10},null,null,null,null,"х"]
[null,null,null,null,null,null,{"$f":"COUNTIF($L$16:L38,Персонал!$D$3)","v":10}]
[null,null,null,null,null,null,{"$f":"COUNTIF($L$16:L39,Персонал!$D$3)","v":10}]
[null,null,null,null,null,null,{"$f":"COUNTIF($L$16:L40,Персонал!$D$3)","v":10},"Костюм Зимний",null,1,"износ","РМКЛ"]
[null,null,null,null,null,null,{"$f":"COUNTIF($L$16:L41,Персонал!$D$3)","v":10},"Костюм Летний",null,1,"износ","РМКЛ"]
[null,null,null,null,null,null,{"$f":"COUNTIF($L$16:L42,Персонал!$D$3)","v":10},"Подшлемник",null,1,"износ","РМКЛ"]
[null,null,null,null,null,null,{"$f":"COUNTIF($L$16:L43,Персонал!$D$3)","v":10},"Валенки",null,1,0.33,"РМКЛ"]
[null,null,null,null,null,null,{"$f":"COUNTIF($L$16:L44,Персонал!$D$3)","v":10},null,null,null,null,"РМКЛ"]
[null,null,null,null,null,null,{"$f":"COUNTIF($L$16:L45,Персонал!$D$3)","v":10},"Перчатки"]
[null,null,null,null,null,null,{"$f":"COUNTIF($L$16:L46,Персонал!$D$3)","v":10}]
[null,null,null,null,null,null,{"$f":"COUNTIF($L$16:L47,Персонал!$D$3)","v":10}]
[null,null,null,null,null,null,{"$f":"COUNTIF($L$16:L48,Персонал!$D$3)","v":10}]
[null,null,null,null,null,null,{"$f":"COUNTIF($L$16:L49,Персонал!$D$3)","v":10},null,null,null,null,"х"]

{"sheet":"Персонал","index":1,"n_rows":19,"n_cols":5,"rows_kept":19,"cut":false,"hidden":false,"merged":[]}
[]
[]
[null,null,"Должность:","РиОЭО рабочий"]
[]
[null,null,"Фамилия:","Мухин"]
[]
[]
[null,"РиОЭО рабочий","РиОЭО оператив","РМКЛ","РВЛ"]
[null,"Санников","Лобов","Тереньтев","Голямов"]
[null,"Иванов","Горей","Стрелец","Аминов"]
[null,"Дементьев","Алиев","Мухин","Шнур"]
[null,"Мамин","Золин","Филипов","Рудь"]
[null,"Шульц","Храмой","Ченцов","Польников"]
[null,"Семенов","Власов",null,"Угрюмов"]
[null,"Орлов","Гугин",null,"Момей"]
[null,"Григорьев","Найденов",null,"Борисов"]
[null,"Жук","Прохоров",null,"Норицын"]
[null,"Дмитриев","Попов",null,"Уваров"]
[null,null,null,null,"Харитонов"]